Cogmind - Beta 15 @@@ ROGUE MODE // 2025.06.03 @ 16:16:13 Player: Lulu Result: Destroyed by D-53 Grenadier with Mini Grenade Launcher Performance ------------- Evolutions (0) 0 Regions Visited (2) 400 Robots Destroyed (4) 20 Value Destroyed (162) 162 Prototype IDs (0) 0 Alien Tech Used (0) 0 Bonus (0) 0 TOTAL SCORE: 582 Bonus ------- None Cogmind --------- Core Integrity 0/250 Matter 300/300 Energy 250/250 System Corruption 0% Temperature Cool (0) Movement Walking (190) Ox1 Location -10/Mines Parts ------- > --- POWER (1) -------- Ion Engine > --- PROPULSION (2) --- Aluminum Leg > --- UTILITY (2) ------ Improved Heat Sink Small Storage Unit > --- WEAPON (2) ------- (None) > --- INVENTORY (8) ---- Aluminum Leg Heat Sink Peak State ------------ > --- POWER ------------ Ion Engine > --- PROPULSION ------- Aluminum Leg Aluminum Leg > --- UTILITY ---------- Improved Heat Sink Small Storage Unit > --- WEAPON ----------- EM Pulse Gun Assault Rifle > --- INVENTORY -------- Heat Sink [Rating: 9] Favorites ----------- Power Ion Engine Engine Ion Engine Propulsion Aluminum Leg Leg Aluminum Leg Utility Small Storage Unit Device Improved Heat Sink Storage Small Storage Unit Weapon EM Pulse Gun Energy Gun EM Pulse Gun Ballistic Gun Assault Rifle Build | -11 -10 -10 ------- Run | Yrd Mat Min Slots Evolved . | . . . Power . | . . . Propulsion . | . . . Utility . | . . . Weapon . | . . . Parts Attached 10 | 6 1 3 Power 1 | 1 . . Engine 1 | 1 . . Core . | . . . Reactor . | . . . Propulsion 3 | 2 . 1 Treads . | . . . Leg 3 | 2 . 1 Wheel . | . . . Hover . | . . . Flight . | . . . Utility 3 | 1 . 2 Device 2 | . . 2 Storage 1 | 1 . . Processor . | . . . Hackware . | . . . Protection . | . . . Artifact . | . . . Weapon 3 | 2 1 . Energy Gun 1 | 1 . . Energy Cannon . | . . . Ballistic Gun 2 | 1 1 . Ballistic Cannon . | . . . Launcher . | . . . Special Weapon . | . . . Impact Weapon . | . . . Slashing Weapon . | . . . Piercing Weapon . | . . . Special Melee Weapon . | . . . Unidentified Prototypes . | . . . Parts Lost 3 | . . 3 Power . | . . . Propulsion 1 | . . 1 Utility . | . . . Weapon 2 | . . 2 Highest Loss Streak 3 | . . 3 To Critical Strikes . | . . . Average Backups . | . . 1 Power . | . . . Propulsion . | . . . Utility . | . . . Weapon . | . . . Tool/Special . | . . . Unused Backups . | . . . Power . | . . . Propulsion . | . . . Utility . | . . . Weapon . | . . . Tool/Special . | . . . Average Slot Usage (%) 93 | . 85 96 Engine 14 | . 14 14 Leg 27 | . 28 27 Device 8 | . . 11 Storage 14 | . 14 14 Energy Gun 14 | . 14 14 Ballistic Gun 13 | . 14 13 Peak Build Rating 9 | 6 6 9 Average Rating 7 | 5 6 8 On Entrance 4 | . 6 6 Naked Turns . | . . . Heaviest Build 15 | 13 14 15 Greatest Support 20 | 20 20 20 Greatest Overweight (x) 2 | 2 . 1 Average Overweight (x) . | . . . Largest Inventory Capacity 8 | 8 8 8 Average Capacity 7 | 7 8 8 Most Carried 2 | . 1 2 Average Carried . | . . 1 Final Capacity 8 | 8 8 8 Final Carried 2 | . . 2 Class Distribution -------------------- 100% | Mutant Dominant Class ---------------- Mutant | -10/Materials Mutant | -10/Mines Resources | -11 -10 -10 ----------- Run | Yrd Mat Min Matter Collected 342 | 260 . 82 Remotely . | . . . Salvage Created 207 | . . 207 Parts 8 | . . 8 Haulers Intercepted . | . . . Recyclers Shooed . | . . . Parts Field Recycled . | . . . Retrieved Matter . | . . . Parts Self-Destructed . | . . . Prevented . | . . . Kills | -11 -10 -10 ------- Run | Yrd Mat Min Combat Hostiles Destroyed 4 | . . 4 Guns 4 | . . 4 Classes Destroyed 1 | . . 1 Grunt 4 | . . 4 Best Kill Streak 2 | . . 2 Combat Bots Only 2 | . . 2 Max Kills in Single Turn 1 | . . 1 Gunslinging . | . . . Exploded . | . . . Melee . | . . . Uniques/NPCs Destroyed . | . . . Combat | -11 -10 -10 -------- Run | Yrd Mat Min Hostile Shots Fired 37 | . 4 33 Missed 6 | . 1 5 Hits 31 | . 3 28 Projectile 31 | . 3 28 AOE 8 | . . 8 Damage Taken 661 | . 48 613 Core 259 | . 36 223 Absorbed by Shields . | . . . Core Remaining (%) 100 | 100 . . Volleys Fired 14 | . 1 13 Largest 2 | . 2 2 Hottest 60 | . 60 60 Shots Fired 28 | . 2 26 Gun 28 | . 2 26 Cannon . | . . . Launcher . | . . . Special . | . . . Kinetic 14 | . 1 13 Thermal . | . . . Explosive . | . . . Electromagnetic 14 | . 1 13 Robot Hit Streak 6 | . 2 6 Robot Miss Streak 3 | . . 3 Penetration Max . | . . . Secondary Targets . | . . . Shots Hit Robots 20 | . 2 18 Core Hits 10 | . . 10 Critical Kills . | . . . Critical Parts Destroyed . | . . . Critical Strikes 1 | . . 1 Corrupt 1 | . . 1 Melee Attacks . | . . . Impact . | . . . Slashing . | . . . Piercing . | . . . Sneak Attacks . | . . . Combat Hostiles . | . . . Follow-up Attacks . | . . . Damage Inflicted 252 | . 25 227 Guns 252 | . 25 227 Cannons . | . . . Explosions . | . . . Melee . | . . . Ramming . | . . . Kinetic 117 | . 10 107 Thermal . | . . . Explosive . | . . . Electromagnetic 135 | . 15 120 Impact . | . . . Slashing . | . . . Piercing . | . . . Highest Corruption . | . . . Average Corruption . | . . . Corruption Purged . | . . . Corruption Blocked . | . . . Overload Shots . | . . . Overflow Damage . | . . . Projectiles . | . . . Explosions . | . . . Melee . | . . . Knockbacks . | . . . Impact . | . . . Kinetic . | . . . Secondary . | . . . Self-Inflicted Damage . | . . . Shots . | . . . Rammed . | . . . Targets Rammed . | . . . Kicked . | . . . Crushed . | . . . Highest Temperature 57 | . 9 57 Average Temperature 28 | . 9 31 Received Heat Transfer 186 | . 24 162 Siege Activations . | . . . Martial Activations . | . . . Shielding Activations . | . . . Robots Disrupted . | . . . Combat Hostiles . | . . . Robots Corrupted . | . . . Combat Hostiles . | . . . Parts Fried . | . . . Impact Corruptions . | . . . Robots Melted . | . . . Combat Hostiles . | . . . Parts Melted . | . . . Heat Transferred . | . . . Parts Sabotaged . | . . . Parts Stolen . | . . . Parts Stripped . | . . . Power Chain Reactions . | . . . Alert | -11 -10 -10 ------- Run | Yrd Mat Min Maximum Alert Level . | . . . Low Security (%) 100 | 100 100 100 Level 1 . | . . . Level 2 . | . . . Level 3 . | . . . Level 4 . | . . . Level 5 . | . . . High Security . | . . . Max Security . | . . . Peak Influence 70 | . . 70 Initial . | . . . Average 23 | . . 38 Influence Increases 100 | . . 100 Destroy 0b10 Robot/C 80 | . . 80 Destroy Leader 20 | . . 20 Influence Decreases 100 | . . 100 Time Decay 90 | . . 90 Lost Part 10 | . . 10 Squads Dispatched . | . . . Investigation . | . . . Extermination . | . . . Reinforcement . | . . . Assault . | . . . Garrison . | . . . Intercept . | . . . Searches Triggered . | . . . Construction Impeded . | . . . Haulers Reinforced . | . . . Active Scanning Responses . | . . . Cargo Convoy Interrupts . | . . . Stealth | -11 -10 -10 --------- Run | Yrd Mat Min Distress Signals 1 | . 1 . Communications Jammed . | . . . Distress Signals . | . . . Times Spotted 8 | . 2 6 Peak Tracking Total 3 | . 3 2 Tactical Retreats . | . . . Traps | -11 -10 -10 ------- Run | Yrd Mat Min Traps Triggered . | . . . Indirectly . | . . . Trap Hack Attempts . | . . . Triggered . | . . . Disarmed . | . . . Reprogrammed . | . . . Reused . | . . . Traps Extracted . | . . . Installed . | . . . Triggered . | . . . Machines | -11 -10 -10 ---------- Run | Yrd Mat Min Machines Disabled . | . . . Max in Single Turn . | . . . Machines Repaired . | . . . Machines Dismantled . | . . . Machines Sabotaged . | . . . Overloaded Fab Kills . | . . . Hacking | -11 -10 -10 --------- Run | Yrd Mat Min Machines Accessed . | . . . Terminals . | . . . Fabricators . | . . . Repair Stations . | . . . Recycling Units . | . . . Scanalyzers . | . . . Garrison Access . | . . . Total Hacks . | . . . Successful . | . . . Failed . | . . . Catastrophic . | . . . Database Lockouts . | . . . Manual . | . . . Terminals . | . . . Fabricators . | . . . Repair Stations . | . . . Recycling Units . | . . . Scanalyzers . | . . . Garrison Access . | . . . Terminal Hacks . | . . . Fabricator Hacks . | . . . Repair Station Hacks . | . . . Recycling Unit Hacks . | . . . Scanalyzer . | . . . Garrison Access Hacks . | . . . Unauthorized Hacks . | . . . Terminals . | . . . Fabricators . | . . . Repair Stations . | . . . Recycling Units . | . . . Scanalyzers . | . . . Garrison Access . | . . . Data Cores Recovered . | . . . Used . | . . . Hacking Detections . | . . . Full Trace Events . | . . . Feedback Events . | . . . Feedback Blocked . | . . . Robot Schematics Acquired . | . . . Robots Built . | . . . Authchips . | . . . Time . | . . . Total Robot Build Rating . | . . . Part Schematics Acquired . | . . . Parts Built . | . . . Authchips . | . . . Time . | . . . Total Part Build Rating . | . . . Parts Repaired . | . . . Time . | . . . Parts Recycled . | . . . Recycled Matter . | . . . Retrieved Matter . | . . . Retrieved Components . | . . . Parts Scanalyzed . | . . . Part Schematics Acquired . | . . . Parts Damaged . | . . . Bothacking | -11 -10 -10 ------------ Run | Yrd Mat Min Used RIF Installer . | . . . Robots Hacked . | . . . Non-combat . | . . . Combat . | . . . Robot Hacks Applied . | . . . Relay Couplers Released . | . . . Fabnet Peak Effective % . | . . . Robots Rewired . | . . . Allies Hacked . | . . . Hacks Repelled . | . . . Allies | -11 -10 -10 -------- Run | Yrd Mat Min Total Allies . | . . . Largest Group . | . . . Highest-Rated Group . | . . . Highest-Rated Ally . | . . . Total Orders . | . . . Ally Attacks . | . . . Total Damage . | . . . Kills . | . . . Allies Corrupted . | . . . Allies Melted . | . . . Intel | -11 -10 -10 ------- Run | Yrd Mat Min Active Infowar (turns) . | . . . Robot Analysis Total . | . . . Derelict Logs Recovered . | . . . Drone Launches . | . . . Drone Recoveries . | . . . Exploration | -11 -10 -10 ------------- Run | Yrd Mat Min Turns Passed 314 | 60 64 190 Spaces Moved 199 | 42 50 107 Core 6 | 6 . . Treads . | . . . Legs 193 | 36 50 107 Wheels . | . . . Hover . | . . . Flight . | . . . Fastest Speed 50 | 50 120 120 Average Speed 122 | 122 120 123 Slowest Speed 190 | 190 120 190 Overloaded Moves . | . . . Propulsion Burnouts . | . . . Robots Hopped . | . . . Potential Cave-ins 1 | . . 1 Cave-ins Triggered . | . . . Exploration Rate (%) 15 | 3 20 24 Regions Visited 2 Branch Regions 1 Pre-discovered Areas . | . . . Known Exits Taken . | . . . Unknown Exits Taken 2 | 1 1 . Scrap Searched . | . . . Spaces Dug . | . . . Terrain Destroyed . | . . . Melee . | . . . Projectile . | . . . AOE . | . . . Terrain Rammed . | . . . Walls Destroyed . | . . . Machines Disabled . | . . . Actions | -11 -10 -10 --------- Run | Yrd Mat Min Total 237 | 47 52 138 Wait 15 | . . 15 Move 197 | 41 49 107 Hop . | . . . Pick Up . | . . . Fast Attach 7 | 6 . 1 Attach . | . . . Detach . | . . . Swap 3 | . 1 2 Drop 1 | . 1 . Fire 14 | . 1 13 Melee . | . . . Ram . | . . . Kick . | . . . Crush . | . . . Escape Stasis . | . . . Rewire . | . . . Trap . | . . . Miscellaneous . | . . . Route ------- -11/Scrapyard -10/Materials -10/Mines (discovered 1 exit: [*Mat]) History --------- Turn | Location | Event 13 | -11/Scrapyard | Discovered new exit (range 16) 61 | -11/Scrapyard | Entered Materials 109 | -10/Materials | Discovered new exit (range 12) 125 | -10/Materials | Entered Mines 272 | -10/Mines | Discovered new exit (range 5) 295 | -10/Mines | Assembled infested the area 311 | -10/Mines | Core integrity fell below 50% 313 | -10/Mines | Build established: Mutant 313 | -10/Mines | Core integrity fell below 20% 315 | -10/Mines | Destroyed by D-53 Grenadier with Mini Grenade Launcher Last Messages --------------- would be to start expanding in this direction." 00272_ EXIT=FOUND 00295_ ALERT: Infestation in the mines, dispatching Demolisher response squad. 00304_ C-30 ARC bursts open, deploying its payload. 00304_ D-53 Grenadier unfolds itself. 00306_ Aluminum Leg destroyed. 00306_ Assault Rifle destroyed. 00309_ The unstable cave ceiling collapses. 00310_ EM Pulse Gun destroyed. 00312_ The unstable cave ceiling collapses. Open spaces previously occupied by now-destroyed walls and earth have a slight glow to them. Consecutive moves through these unstable areas may cause a cave-in, but only if doing so for extended periods. Tunneling a short distance between rooms is safe unless the area was destabilized by an explosion. Map ----- +----------------------------------------------------+ | | | | | | | | | | | | | ?????????????????????????????????????????????????? | | ?????????????????????????????????????????????????? | | ?????????????????????????????????????????????????? | | ????????????????????????????########?????????????? | | ???????????????????????????# #????????????? | | ???????????????????????????# """ #????????????? | | ???????????????????????????# """ ####?????????? | | ???????????????????######### """ ## ?????????? | | ???????????????????# " ## #?????????? | | ???????????????????# %###### < ## #?????????? | | ???????????????????# #????# ## #?????????? | | ?????????????????### ###??# ######### #?????????? | | ????????????????## #??# ######### #?????????? | | ????????????????# # d #??# #?????????? | | ????????????????# d# #### ###########?????????? | | ????????????????# ## #???????????????????? | | ???????????????## # ####????????????????? | | ???????????????# ##???????????????? | | ???????????????## #???????????????? | | ????????????????# @ # ##??????????????? | | ????????????????# ### #??????????????? | | ????????????????# ### ##???????####??? | | ????????????????# # ##?## ####???## ##?? | | ????????????????# ### #??## ##??# ##? | | ????????????????# ??# #??## ##?# ## | | ????????????????# ?? #???### ### # | | ????????????????# ?? ## ##?????## | | ????????????????# ? ##?###???????## | | ????????????????##? #?????????????###### # | | ?????????????????? #??????????????????# ## | | ????????????????? ???????????????????## #? | | ?????????????????# ???????????????????## #? | | ?????????????????# ??????????????????## #? | | ?????????????????# ??????????????????# ## | | ???????????????????? ??????????????????# ### | | ?????????????????????????????????????????## % | | ??????????????????????????????????????????# ##%# | | ?????????????????????????????????????????# ## # | | ?????????????????????????????????????????# ## # | | ?????????????????????????????????????????# ## # | | ?????????????????????????????????????????## ### # | | ??????????????????????????????????????????###??# # | | ???????????????????????????????????????????????# # | | ???????????????????????????????????????????????# # | +----------------------------------------------------+ Best States ------------- Heat Dissipation 39 Energy Generation 10 Energy Capacity 250 Matter Stores 300 Matter Capacity 300 Sight Range 16 Terrain Scan Density 10 Evasion (%) 55 Item Schematics ----------------- None Robot Schematics ------------------ None Fabricated ------------ Nothing Repaired ---------- Nothing Alien Tech Used ----------------- None Achievements -------------- None Challenges ------------ None Game ------ Seed CompanionTripodBiocell Manual? 0 Play Time 00:06:14 Cumulative 19.4 hours Start 2025.06.03 @ 16:12:13 End 2025.06.03 @ 16:16:13 Sessions 1 Manual Loads 0 Difficulty Rogue Special Mode None Game No. 17 Rogue 17 Adventurer 0 Explorer 0 Win Type - Total 0 Types 0/0/0/0/0/0/0/0/0/0 Lore% 11 Gallery% 21 Achievement% 20 Wizard Run 0 Options --------- Layout 1 ASCII 0 Keyboard 0 Movement Mouse Keybinds 0 Fullscreen 1 Font 24/Smallcaps Map View 50x35 Zoom Use 0% Tactical HUD 1 Map Filters NONE Filters NONE Steam 1 RUN: 8ffcf4d8-66d2-4b1e-8a3c-594fbee9e756